bitfinex-derivatives/quotes_ETHF0:USTF0_20210111
["timestamp","ask_amount","ask_price","bid_price","bid_amount"]
[1610336542791,2.1455,1042.9,1041.0,1.8212]
[1610336542992,2.1455,1042.9,1041.0,1.2332]
[1610336543291,2.1455,1042.9,1041.0,0.1203]
[1610336543694,2.1455,1042.9,1039.9,0.29333741]
[1610336544095,2.1455,1042.9,1040.0,0.29338981]
[1610336544293,4.00959,1040.1,1039.8,2.156]
[1610336544493,2.0926,1041.4,1039.8,1.8815]
[1610336544694,4.0167,1041.4,1039.8,1.8815]
[1610336544893,4.0167,1041.4,1039.2,1.16188143]
[1610336545093,4.0167,1041.4,1039.8,0.3094]
[1610336545294,2.0926,1041.4,1039.8,0.3094]
[1610336545797,2.0926,1041.4,1039.8,1.7381]
[1610336545998,2.0926,1041.4,1039.2,1.16188143]
[1610336546198,2.0926,1041.4,1039.8,1.9502]
[1610336546398,3.9952,1041.4,1039.8,1.9502]
[1610336546598,2.0926,1041.4,1038.6,1.9135]
[1610336546797,0.2931,1039.8,1038.6,1.9135]
[1610336546998,2.5599,1039.8,1038.6,0.7685]
[1610336547399,2.5599,1039.8,1036.7,2.81947119]
[1610336547599,2.5599,1039.8,1036.7,1.76399921]
[1610336547798,2.5599,1039.8,1035.7,4.11599815]
[1610336547998,4.475,1039.8,1036.6,2.35217826]
[1610336548200,1.9424,1040.5,1036.8,4.00959]
[1610336548400,2.0926,1041.4,1036.6,4.1062]
[1610336548601,2.0926,1041.4,1036.6,2.153]
[1610336548802,2.0926,1041.4,1035.9,2.35336303]
[1610336549000,2.0926,1041.4,1036.0,2.35386396]
[1610336549202,0.96313,1038.3,1036.0,1.9751]
[1610336549402,2.0121,1039.6,1036.0,1.5243]
[1610336549603,0.99756,1039.1,1034.5,4.70957906]
[1610336550002,0.99756,1039.1,1034.3,6.66939474]
[1610336550202,4.00959,1035.4,1034.8,4.00959]
[1610336550402,1.9105,1035.4,1034.8,3.66489]
[1610336550606,2.5105,1038.9,1034.8,5.84639]
[1610336550803,2.5105,1038.9,1034.8,2.1815]
[1610336551205,0.99756,1037.3,1034.8,2.1815]
[1610336551404,2.94166,1037.3,1034.8,2.1815]
[1610336551604,1.9261,1037.9,1034.8,2.1815]
[1610336551803,1.9261,1037.9,1033.6,3.08077016]
[1610336552003,1.9261,1037.9,1033.6,2.2586]
[1610336552203,4.00959,1034.0,1033.6,2.2586]
[1610336552403,1.07753,1038.4,1033.6,4.2221]
[1610336552603,1.07753,1038.4,1033.6,2.2586]
[1610336553603,2.5105,1038.9,1033.6,2.2586]
[1610336554004,2.5105,1038.9,1033.6,1.1325]
[1610336554203,4.00959,1034.0,1033.6,1.1325]
[1610336554404,2.5105,1038.9,1033.6,1.1325]
[1610336554604,30.0,1038.8,1031.9,7.77957251]
[1610336554805,30.0,1038.8,1034.1,0.1976811]
[1610336555007,30.0,1038.8,1034.0,0.59056219]
[1610336555008,30.0,1038.8,1033.0,0.59074384]
[1610336555206,39.0,1038.8,1033.0,2.94264384]
[1610336555410,39.0,1038.8,1033.0,2.3519]
[1610336555607,1.9414,1038.9,1033.0,2.3519]
[1610336556008,75.3042,1035.0,1033.0,2.3519]
[1610336556207,4.00959,1033.1,1033.0,2.3519]
[1610336556408,1.7973,1036.8,1033.0,2.3519]
[1610336556608,60.2074,1035.1,1033.0,2.3519]
[1610336557207,62.1522,1035.1,1033.0,2.3519]
[1610336557810,60.2074,1035.1,1033.0,0.8837]
[1610336558008,62.6304,1035.1,1033.0,0.8837]
[1610336558207,4.00959,1033.1,1031.9,0.8865586]
[1610336558407,4.00959,1033.1,1031.6,0.88663963]
[1610336558607,2.2064,1034.8,1031.6,0.88663963]
[1610336558807,2.2064,1034.8,1031.6,2.80914724]
[1610336559006,2.2064,1034.8,1031.7,1.18247155]
[1610336559209,2.2064,1034.8,1031.6,2.37196099]
[1610336559610,2.2064,1034.8,1031.2,0.98737044]
[1610336559808,2.2064,1034.8,1030.9,2.36543526]
[1610336560008,2.2064,1034.8,1030.9,4.28803526]
[1610336560208,4.00959,1031.4,1030.9,1.9226]
[1610336560610,2.2064,1034.8,1030.9,1.9226]
[1610336561817,1.00419,1032.3,1030.9,1.9226]
[1610336562214,4.00959,1031.0,1030.9,1.9226]
[1610336562415,4.00959,1031.0,1029.5,3.55017561]
[1610336562416,1.00419,1032.3,1029.4,2.95919976]
[1610336562614,1.9629,1032.8,1029.4,2.95919976]
[1610336562815,1.9629,1032.8,1029.4,4.54309976]
[1610336563216,1.9629,1032.8,1029.4,1.5839]
[1610336563916,1.9629,1032.8,1029.7,2.95896967]
[1610336564119,1.9629,1032.8,1029.8,2.95866059]
[1610336564318,1.9629,1032.8,1030.3,4.00959]
[1610336564521,1.9629,1032.8,1030.3,7.74869]
[1610336564817,59.9853,1032.9,1030.3,7.74869]
[1610336565018,61.9489,1032.9,1030.3,5.81289]
[1610336565219,61.9489,1032.9,1030.3,1.10860729]
[1610336565421,74.7432,1034.4,1030.3,1.10860729]
[1610336566018,74.7432,1034.4,1030.4,1.69937033]
[1610336566218,4.00959,1033.5,1032.7,4.00959]
[1610336566418,1.9482,1034.3,1032.7,5.94139]
[1610336566822,1.6913,1035.4,1032.7,5.94139]
[1610336567018,66.3391,1036.1,1032.7,5.94139]
[1610336567418,7.34245354,1037.9,1032.7,5.94139]
[1610336567619,1.9525,1037.9,1032.7,5.94139]
[1610336568018,1.9525,1037.9,1032.7,7.88779]
[1610336568219,7.4044435,1038.8,1032.8,30.0]
[1610336568419,7.45182064,1039.2,1037.8,5.74149]
[1610336568821,7.4701152,1039.3,1037.8,5.74149]
[1610336569022,7.58059393,1040.2,1037.8,5.74149]
[1610336569222,1.9203,1040.2,1037.8,5.74149]
[1610336569424,8.5503511,1040.9,1037.8,5.74149]
[1610336569822,9.90005135,1042.9,1037.8,5.74149]
[1610336569823,9.05905465,1041.5,1039.3,0.4]
[1610336570021,9.51189418,1042.0,1039.3,2.4543]
[1610336570221,9.20099786,1042.5,1039.3,2.4543]
[1610336570421,1.8973,1043.0,1040.8,4.00959]
[1610336570622,9.6640139,1043.2,1040.8,6.25789]
[1610336570822,1.776,1044.0,1040.8,6.25789]
[1610336570823,9.66974331,1043.3,1040.8,6.25789]
[1610336571224,9.66304578,1043.6,1040.8,6.25789]
[1610336571423,11.47079632,1044.0,1040.8,2.2483]
[1610336571623,13.38529632,1044.0,1040.8,2.2483]
[1610336571823,1.776,1044.0,1040.8,2.2483]
[1610336572025,11.45266482,1044.0,1040.8,2.2483]
[1610336572425,3.7087,1044.0,1040.8,2.2483]
[1610336572626,4.00959,1041.8,1040.8,2.2483]
[1610336573227,2.1166,1043.0,1040.8,2.2483]
[1610336573627,4.054,1043.0,1040.8,2.2483]
[1610336574026,2.1166,1043.0,1040.8,2.2483]
[1610336574527,4.00959,1040.9,1040.8,2.2483]
[1610336574726,4.00959,1040.9,1039.3,2.4543]
[1610336574926,2.295,1041.2,1039.3,2.4543]
[1610336576227,4.1981,1041.2,1039.3,2.4543]
[1610336576627,4.00959,1039.9,1039.3,2.4543]
[1610336577028,1.5388,1040.4,1039.3,2.4543]
[1610336578027,2.317,1041.8,1039.3,2.4543]
[1610336578629,4.00959,1041.3,1039.3,2.4543]
[1610336578829,5.88809,1041.3,1039.3,2.4543]
[1610336580636,4.00959,1039.4,1039.3,0.4]
[1610336581236,2.1028,1039.8,1038.9,1.7532]
[1610336581437,2.1028,1039.8,1037.3,1.5761]
[1610336581637,2.1028,1039.8,1036.7,0.29472534]
[1610336581938,2.1028,1039.8,1036.6,0.29477797]
[1610336582337,2.1028,1039.8,1036.3,0.29479677]
[1610336582537,4.00959,1039.7,1039.6,4.00959]
[1610336582736,4.00959,1039.7,1036.1,0.494786]
[1610336583238,4.00959,1039.7,1036.2,2.00763531]
[1610336583440,4.00959,1039.7,1036.2,3.46049251]
[1610336584138,73.5206,1039.1,1036.2,3.46049251]
[1610336584340,75.7811,1039.1,1036.2,3.46049251]
[1610336584541,4.00959,1037.3,1036.5,4.00959]
[1610336584940,2.323,1037.4,1036.5,4.00959]
[1610336585141,2.25,1038.2,1036.5,5.98049]
[1610336585842,73.5206,1039.1,1036.5,5.98049]
[1610336586241,73.5206,1039.1,1036.6,1.47384181]
[1610336586642,73.5206,1039.1,1039.0,6.06089]
[1610336586843,73.5206,1039.1,1039.0,2.0513]
[1610336587042,0.99413,1042.7,1039.0,2.0513]
[1610336587642,0.99413,1044.4,1039.0,2.0513]
[1610336587841,10.63159043,1044.7,1039.0,2.0513]
[1610336588043,10.69990057,1045.1,1039.0,2.0513]
[1610336588242,10.7633721,1045.6,1039.0,2.0513]
[1610336588644,1.06911,1046.6,1042.3,4.00959]
[1610336588645,10.77501944,1045.8,1042.3,4.00959]
[1610336588844,10.77501944,1045.8,1042.3,5.79719]
[1610336589044,10.82703233,1046.1,1042.3,5.79719]
[1610336589246,1.47094559,1045.5,1042.3,5.79719]
[1610336589445,3.51374559,1045.5,1042.3,5.79719]
[1610336590245,5.40914559,1045.5,1042.3,5.79719]
[1610336590445,3.36634559,1045.5,1042.3,5.79719]
[1610336590647,4.00959,1044.3,1043.3,4.00959]
[1610336590847,1.46940254,1045.4,1043.3,4.00959]
[1610336591047,1.46940254,1045.4,1043.3,7.73089]
[1610336591247,1.46940254,1045.4,1043.3,5.84069]
[1610336591849,1.46829128,1046.8,1043.3,5.84069]
[1610336592050,1.46829128,1046.8,1043.7,67.4512]
[1610336592250,1.46829128,1046.8,1043.7,70.9588]
[1610336592452,1.46829128,1046.8,1044.0,0.95922]
[1610336592652,74.22358128,1048.7,1046.7,4.00959]
[1610336592851,1.8912,1048.7,1046.7,6.19089]
[1610336593050,12.07960972,1051.0,1046.7,6.19089]
[1610336593451,12.15645335,1051.5,1046.7,6.19089]
[1610336593649,12.15645335,1051.5,1046.7,8.12219]
[1610336593852,12.20820668,1051.9,1046.7,6.19089]
[1610336594052,14.3309116,1056.3,1046.7,6.19089]
[1610336594053,0.94759,1052.3,1046.7,6.19089]
[1610336594454,12.3004795,1052.5,1046.7,6.19089]
[1610336594655,1.8747,1052.8,1047.2,4.00959]
[1610336594854,1.8747,1052.8,1047.2,6.05879]
[1610336595056,12.44089634,1053.4,1047.2,6.05879]
[1610336596658,12.44089634,1053.4,1048.6,4.00959]
[1610336596858,1.7413,1049.1,1048.6,4.00959]
[1610336597258,1.7413,1049.1,1047.2,2.0492]
[1610336597461,2.0405,1049.1,1047.2,2.0492]
[1610336597660,0.6,1053.3,1047.2,2.0492]
[1610336597857,2.8571,1053.3,1047.2,2.0492]
[1610336598659,2.8571,1053.3,1051.1,4.00959]
[1610336599260,2.8571,1053.3,1051.1,6.34419]
[1610336599660,2.8571,1053.3,1051.1,2.3346]
[1610336600660,4.00959,1051.4,1051.1,2.3346]
[1610336600861,8.24960866,1051.9,1051.0,2.47569]
[1610336601060,1.8055,1051.9,1051.0,2.47569]
[1610336602662,1.8055,1051.9,1050.2,2.2227]
[1610336602663,1.8055,1051.9,1051.8,4.00959]
[1610336602866,1.8246,1052.2,1051.8,4.00959]
[1610336603063,10.57703135,1052.9,1051.8,4.00959]
[1610336603462,10.60405947,1053.0,1051.8,4.00959]
[1610336603863,2.8571,1053.3,1051.8,4.00959]
[1610336603864,10.65647461,1053.2,1051.8,5.52639]
[1610336604062,0.6,1053.3,1051.8,5.52639]
[1610336604663,4.60959,1053.3,1052.9,4.00959]
[1610336605064,4.60959,1053.3,1052.9,6.10579]
[1610336605466,4.60959,1053.3,1051.8,1.5168]
[1610336605665,6.46099,1053.3,1052.6,2.1118]
[1610336606465,6.46099,1053.3,1052.6,1.7873]
[1610336606666,4.00959,1052.7,1051.8,1.5168]
[1610336606865,6.22249,1052.7,1051.6,65.4525]
[1610336607465,2.2129,1052.7,1051.6,65.4525]
[1610336607865,2.2129,1052.7,1050.1,58.0015]
[1610336608668,4.00959,1052.6,1051.7,4.00959]
[1610336609267,4.00959,1052.6,1050.1,60.1779]
[1610336610672,4.00959,1051.7,1050.6,4.00959]
[1610336610868,4.00959,1051.7,1050.1,58.0015]
[1610336611069,5.97149,1051.7,1050.1,58.0015]
[1610336611870,5.97149,1051.7,1048.7,61.9788]
[1610336612272,73.7213,1051.4,1047.1,79.5191]
[1610336612470,75.9531,1051.4,1047.1,79.5191]
[1610336612672,4.00959,1049.7,1048.4,4.00959]
[1610336612872,75.9531,1051.4,1048.4,4.00959]
[1610336613075,75.9531,1051.4,1048.4,6.11859]
[1610336614173,75.9531,1051.4,1048.4,4.00959]
[1610336614374,75.9531,1051.4,1048.4,6.29589]
[1610336614776,4.00959,1049.3,1048.4,6.29589]
[1610336614974,75.9531,1051.4,1048.4,6.29589]
[1610336616675,4.00959,1051.0,1049.8,4.00959]
[1610336616874,5.76439,1051.0,1049.8,4.00959]
[1610336617874,5.76439,1051.0,1048.4,2.2863]
[1610336618676,5.76439,1051.0,1049.5,4.00959]
[1610336618677,4.00959,1050.3,1049.5,4.00959]
[1610336619078,5.61029,1050.3,1049.5,4.00959]
[1610336620180,3.4991,1050.3,1049.5,4.00959]
[1610336620381,1.6007,1050.3,1049.5,4.00959]
[1610336622685,4.00959,1050.1,1049.5,4.00959]
[1610336624789,4.00959,1049.9,1047.7,2.4053]
[1610336624990,6.34699,1049.9,1046.0,0.29187578]
[1610336625190,6.34699,1049.9,1045.9,0.58375156]
[1610336625191,6.34699,1049.9,1045.9,0.29196783]
[1610336625592,6.34699,1049.9,1045.6,0.29202573]
[1610336625793,6.34699,1049.9,1045.4,0.29204604]
[1610336626195,6.34699,1049.9,1045.2,0.29209267]
[1610336626394,6.34699,1049.9,1045.7,1.46080472]
[1610336626795,4.00959,1046.9,1045.7,3.63080472]
[1610336626993,6.51889,1046.9,1045.7,3.63080472]
[1610336627594,6.51889,1046.9,1045.7,1.46080472]
[1610336627793,6.51889,1046.9,1043.8,1.16975902]
[1610336627794,6.51889,1046.9,1043.6,0.2927507]
[1610336628394,6.51889,1046.9,1042.4,0.29293124]
[1610336628594,6.51889,1046.9,1041.5,0.29305704]
[1610336628795,4.00959,1041.6,1041.5,0.29305704]
[1610336628995,4.00959,1041.6,1041.4,211.7351]
[1610336628996,2.4577,1041.6,1041.4,211.7351]
[1610336629195,2.4577,1041.6,1041.1,0.29334608]
[1610336629397,2.4577,1041.6,1040.2,0.29353809]
[1610336629595,2.4577,1041.6,1039.8,5.47728046]
[1610336629596,2.2107,1041.6,1039.8,4.00959]
[1610336629997,1.931,1046.0,1039.8,4.00959]
[1610336630196,1.7248,1041.6,1039.8,4.00959]
[1610336630597,1.7248,1041.6,1039.9,1.46838395]
[1610336630796,12.05328,1046.2,1041.5,4.00959]
[1610336630997,12.09279677,1046.4,1041.5,4.00959]
[1610336631197,12.09279677,1046.4,1041.5,6.34479]
[1610336631598,6.5275,1046.7,1041.5,6.34479]
[1610336632197,2.5093,1046.9,1041.5,6.34479]
[1610336632598,12.47681797,1048.7,1041.5,6.34479]
[1610336632797,4.00959,1046.8,1046.0,4.00959]
[1610336632998,2.2512,1046.8,1046.0,4.00959]
[1610336633399,2.2512,1046.8,1042.0,0.29294189]
[1610336633599,2.2512,1046.8,1042.5,0.29287396]
[1610336633797,2.2512,1046.8,1042.5,2.63247396]
[1610336634002,2.2512,1046.8,1042.5,2.3396]
[1610336634398,2.2512,1046.8,1042.5,10.8477]
[1610336634698,2.2512,1046.8,1046.7,4.00959]
[1610336635100,2.2512,1046.8,1045.8,2.3221]
[1610336635700,2.2512,1046.8,1043.1,60.425]
[1610336636701,0.95449,1045.9,1043.1,60.425]
[1610336636901,2.99049,1045.9,1043.1,60.425]
[1610336637101,2.036,1045.9,1043.1,60.425]
[1610336637301,2.036,1045.9,1041.8,0.29319647]
[1610336637500,2.036,1045.9,1041.6,0.29327785]
[1610336637900,2.036,1045.9,1041.3,0.2932946]
[1610336638302,2.036,1045.9,1041.2,0.29338228]
[1610336638701,2.036,1045.9,1041.1,0.58676457]
[1610336638702,2.036,1045.9,1041.0,2.1883]
[1610336638902,2.036,1045.9,1043.1,4.00959]
[1610336640101,2.036,1045.9,1043.1,5.66989]
[1610336640302,2.2512,1046.8,1043.1,5.66989]
[1610336640501,78.1291,1046.1,1043.1,5.66989]
[1610336640701,2.2512,1046.8,1043.1,5.66989]
[1610336640702,12.56878339,1049.1,1043.1,5.66989]
[1610336640901,4.00959,1046.7,1046.0,4.00959]
[1610336641101,6.131,1049.7,1046.0,4.00959]
[1610336641805,1.46343573,1049.6,1046.0,4.00959]
[1610336642004,3.55693573,1049.6,1046.0,4.00959]
[1610336642705,4.00959,1047.2,1046.4,4.00959]
[1610336642904,5.60279,1047.2,1046.4,4.00959]
[1610336643506,4.00959,1047.2,1046.4,4.00959]
[1610336643704,4.00959,1047.2,1045.9,1.9451]
[1610336643904,5.70139,1047.2,1043.6,0.29262081]
[1610336644105,5.70139,1047.2,1043.5,0.29269077]
[1610336644504,5.70139,1047.2,1043.3,0.29275624]
[1610336644904,5.70139,1047.2,1043.1,1.6603]
[1610336644905,1.6918,1047.2,1043.1,1.6603]
[1610336645104,1.6918,1047.2,1042.7,2.0879]
[1610336645305,1.6918,1047.2,1042.6,0.29290217]
[1610336645908,1.6918,1047.2,1042.2,0.29313541]
[1610336646106,1.6918,1047.2,1042.7,1.46588203]
[1610336646910,4.00959,1042.8,1042.7,1.46588203]
[1610336647107,6.30399,1042.8,1042.7,1.46588203]
[1610336647507,6.30399,1042.8,1039.6,1.90206803]
[1610336647707,6.30399,1042.8,1040.0,0.2937168]
[1610336647910,6.30399,1042.8,1040.0,1.7442]
[1610336648910,1.5613,1041.0,1040.1,1.46972971]
[1610336650111,1.5613,1041.0,1040.1,1.36962971]
[1610336650311,1.5613,1041.0,1039.3,1.7302]
[1610336650913,1.5613,1041.0,1039.5,4.00959]
[1610336651310,1.5613,1041.0,1039.3,1.7302]
[1610336651712,1.5613,1041.0,1038.3,64.9153]
[1610336652815,4.00959,1039.5,1038.3,64.9153]
[1610336653014,2.4612,1039.7,1038.3,64.9153]
[1610336653214,2.4612,1039.7,1038.3,66.7992]
[1610336654016,2.4612,1039.7,1038.3,2.2203]
[1610336654216,2.4612,1039.7,1037.1,0.29443122]
[1610336654217,2.4612,1039.7,1037.2,0.29442719]
[1610336654417,2.4612,1039.7,1037.2,1.6585]
[1610336654817,4.00959,1037.8,1036.3,4.30427707]
[1610336655017,5.97969,1037.8,1036.3,0.29468707]
[1610336655219,5.97969,1037.8,1035.6,2.18082449]
[1610336655617,5.97969,1037.8,1035.6,1.886]
[1610336655818,4.00959,1037.8,1035.6,1.886]
[1610336656018,4.00959,1037.8,1034.9,0.88507106]
[1610336656219,6.29789,1037.8,1035.0,0.88488941]
[1610336656421,6.29789,1037.8,1035.0,1.8422]
[1610336656823,4.00959,1036.6,1035.7,4.00959]
[1610336657024,4.00959,1036.6,1035.0,1.8422]
[1610336657324,5.94009,1036.6,1035.0,1.8422]
[1610336657923,1.9253,1037.4,1035.0,1.8422]
[1610336658323,0.96413,1037.2,1035.0,1.8422]
[1610336658725,3.18563,1037.2,1035.0,1.8422]
[1610336658923,0.96413,1037.2,1035.0,1.8422]
[1610336659123,0.96413,1035.5,1035.0,2.2862]
[1610336659323,1.9348,1035.5,1035.0,2.2862]
[1610336659523,1.7242,1035.6,1035.0,2.2862]
[1610336660123,2.3002,1036.1,1034.3,2.5122]
[1610336660324,2.3002,1036.1,1033.2,1.77192283]
[1610336660522,2.3002,1036.1,1033.0,0.61354834]
[1610336660724,2.3002,1036.1,1032.9,1.77211168]
[1610336661124,2.3002,1036.1,1033.1,1.7721803]
[1610336661322,2.3002,1036.1,1033.1,3.9507803]
[1610336661523,2.3002,1036.1,1033.1,2.1786]
[1610336661724,1.9098,1036.8,1033.1,2.1786]
[1610336661925,1.9171,1037.6,1033.1,3.95070027]
[1610336662124,1.9171,1037.6,1033.2,1.77196267]
[1610336662324,1.9171,1037.6,1033.1,3.95090221]
[1610336662924,4.00959,1034.3,1033.4,4.00959]
[1610336663123,1.8724,1035.4,1033.1,2.1786]
[1610336663523,1.8724,1035.4,1033.1,1.7571]
[1610336664726,67.123,1034.7,1033.1,1.7571]
[1610336664926,4.00959,1034.1,1033.1,1.7571]
[1610336665526,4.00959,1034.1,1031.7,1.77470959]
[1610336665927,4.00959,1034.1,1031.6,1.77512483]
[1610336666328,4.00959,1034.1,1032.1,0.2958873]
[1610336666527,4.00959,1034.1,1032.1,2.0712873]
[1610336666726,4.00959,1034.1,1032.1,1.7754]
[1610336666927,2.3924,1034.4,1032.1,1.7754]
[1610336667729,67.123,1034.7,1032.1,1.7754]
[1610336668630,8.2844,1034.1,1032.1,1.7754]
[1610336668829,1.8039,1035.0,1032.9,4.00959]
[1610336669232,1.8724,1035.4,1032.9,6.46449]
[1610336669430,11.49608777,1039.9,1032.9,6.46449]
[1610336669630,0.96472,1036.6,1032.9,6.46449]
[1610336669831,2.74532,1036.6,1032.9,6.46449]
[1610336670431,1.7806,1036.6,1032.9,6.46449]
[1610336670832,4.00959,1035.4,1034.9,4.00959]
[1610336671033,4.00959,1035.4,1032.9,2.4549]
[1610336671233,0.99959,1036.8,1032.9,2.4549]
[1610336671432,2.0223,1036.3,1032.9,2.4549]
[1610336672837,4.00959,1034.3,1033.1,4.00959]
[1610336673035,1.9177,1036.6,1033.1,4.00959]
[1610336673836,3.8214,1036.6,1033.1,4.00959]
[1610336674036,1.33189,1035.7,1033.0,1.47940587]
[1610336674238,3.32229,1035.7,1033.0,1.47940587]
[1610336674437,1.9904,1035.7,1032.1,1.7754]
[1610336674839,4.00959,1033.2,1030.9,0.58585684]
[1610336675040,2.1398,1035.4,1031.1,0.29613961]
[1610336675241,2.1398,1035.4,1031.0,0.29615791]
[1610336675442,2.1398,1035.4,1031.1,2.0927]
[1610336675841,2.1398,1035.4,1031.2,1.48090456]
[1610336676842,4.00959,1031.5,1031.2,1.48090456]
[1610336677043,1.5651,1032.3,1031.2,1.48090456]
[1610336678046,9.7516,1032.3,1031.3,75.3932]
[1610336678244,2.1398,1035.4,1031.3,75.3932]
[1610336678844,4.00959,1031.4,1031.3,75.3932]
[1610336679246,2.343,1032.0,1031.3,75.3932]
[1610336680045,2.1398,1035.4,1031.3,75.3932]
[1610336680247,72.7296,1035.5,1031.3,75.3932]
[1610336680847,4.00959,1035.0,1034.0,4.00959]
[1610336681045,6.15209,1035.0,1034.0,4.00959]
[1610336681244,6.15209,1035.0,1031.3,75.3932]
[1610336681445,6.15209,1035.0,1031.4,1.48043521]
[1610336681646,2.1425,1035.0,1031.4,3.34413521]
[1610336682048,72.7296,1035.5,1031.5,0.29615628]
[1610336682245,74.23052,1035.5,1031.5,0.29615628]
[1610336682647,74.6613,1035.5,1031.4,3.64022775]
[1610336682845,4.00959,1034.9,1033.4,4.00959]
[1610336683047,74.6613,1035.5,1033.4,4.00959]
[1610336683248,74.6613,1035.5,1033.4,6.20009]
[1610336683447,72.7296,1035.5,1033.4,6.20009]
[1610336683848,48.5799,1035.5,1033.4,6.20009]
[1610336684049,1.9196,1035.5,1033.4,6.20009]
[1610336684247,5.9674,1039.7,1033.4,6.20009]
[1610336684451,73.6647,1037.4,1033.4,6.20009]
[1610336684849,4.00959,1036.0,1035.6,4.00959]
[1610336685249,1.9191,1036.8,1035.6,4.00959]
[1610336685449,73.6647,1037.4,1035.6,4.00959]
[1610336685649,75.6166,1037.4,1035.6,6.24679]
[1610336686949,4.00959,1037.3,1036.7,4.00959]
[1610336687149,4.00959,1037.3,1035.6,2.2372]
[1610336687549,60.3552,1037.7,1035.6,2.2372]
[1610336688951,4.00959,1038.1,1037.3,4.00959]
[1610336689352,4.00959,1038.1,1035.6,2.2372]
[1610336690753,4.00959,1038.1,1034.5,65.2277]
[1610336690954,4.00959,1037.2,1036.8,4.00959]
[1610336691153,1.6804,1038.2,1036.8,4.00959]
[1610336691353,1.6804,1038.2,1036.8,6.34479]
[1610336691555,65.6315,1038.8,1036.8,6.34479]
[1610336692955,4.00959,1037.9,1037.1,4.00959]
[1610336693355,65.6315,1038.8,1037.1,4.00959]
[1610336693557,65.6315,1038.8,1037.1,6.49729]
[1610336694756,2.2743,1039.2,1037.1,6.49729]
[1610336695358,62.0099,1039.8,1038.6,4.00959]
[1610336695557,62.0099,1039.8,1038.6,6.36309]
[1610336696360,5.36394649,1044.2,1038.6,6.36309]
[1610336696561,16.54684059,1051.5,1038.6,6.36309]
[1610336696562,13.75987679,1045.8,1038.6,6.36309]
[1610336696962,73.8371,1045.6,1039.4,58.6363]
[1610336697362,4.00959,1043.2,1042.7,4.00959]
[1610336697562,2.2518,1043.2,1039.4,58.6363]
[1610336699362,4.00959,1042.7,1041.8,4.00959]
[1610336699563,5.96159,1042.7,1041.8,4.00959]
[1610336699962,5.96159,1042.7,1039.4,58.6363]
[1610336700163,1.952,1042.7,1039.4,58.6363]
[1610336701372,1.952,1042.7,1039.4,54.8957]
[1610336703268,1.952,1042.7,1042.6,4.00959]
[1610336704673,73.0655,1046.0,1042.6,4.00959]
[1610336704876,6.2226,1047.2,1042.6,5.62229]
[1610336705278,4.00959,1046.4,1045.4,4.00959]
[1610336705478,6.2226,1047.2,1042.6,1.6127]
[1610336705678,1.86959351,1047.1,1042.6,1.6127]
[1610336705878,3.55409351,1047.1,1042.6,1.6127]
[1610336706280,3.55409351,1047.1,1042.8,66.5927]
[1610336707082,1.87112035,1047.0,1042.8,66.5927]
[1610336708581,1.6845,1047.1,1042.8,66.5927]
[1610336708982,3.6071,1047.1,1042.8,66.5927]
[1610336709380,4.00959,1046.3,1045.1,4.00959]
[1610336709579,2.2489,1046.3,1045.1,4.00959]
[1610336710782,1.86582986,1047.0,1045.1,4.00959]
[1610336710981,2.1858,1046.3,1045.1,4.00959]
[1610336711382,2.3998,1046.5,1046.2,4.00959]
[1610336712580,2.3082,1046.8,1046.2,4.00959]
[1610336712781,2.3082,1046.8,1046.2,5.89809]
[1610336713381,4.00959,1047.9,1046.7,4.00959]
[1610336713581,6.0961,1049.2,1046.7,4.00959]
[1610336713982,57.5619,1049.4,1046.7,5.79569]
[1610336715383,57.5619,1049.4,1049.3,4.00959]
[1610336715583,4.00959,1050.8,1049.3,5.60779]
[1610336715783,14.55677376,1052.5,1049.3,5.60779]
[1610336715983,15.27510209,1054.0,1049.3,5.60779]
[1610336716384,15.27144245,1054.1,1049.3,1.5982]
[1610336716985,1.46132602,1053.9,1049.3,1.5982]
[1610336717184,3.24362602,1053.9,1049.3,1.5982]
[1610336717385,4.00959,1050.7,1050.0,4.00959]
[1610336717584,3.24362602,1053.9,1050.0,4.00959]
[1610336718285,0.94899,1053.8,1050.0,4.00959]
[1610336718484,2.40929674,1053.8,1050.0,4.00959]
[1610336719488,6.14669,1051.1,1050.4,4.00959]
[1610336719884,2.1371,1051.1,1050.4,4.00959]
[1610336721484,2.2058,1052.0,1051.0,6.26079]
[1610336722585,15.60519602,1053.9,1051.0,4.00959]
[1610336722985,1.7823,1053.9,1051.0,6.01979]
[1610336723185,13.83858889,1054.2,1051.0,6.01979]
[1610336723386,4.00959,1052.7,1052.2,4.00959]
[1610336723585,5.70509,1052.7,1052.2,4.00959]
[1610336723786,13.83858889,1054.2,1052.2,4.00959]
[1610336723986,6.4232,1055.0,1052.2,4.00959]
[1610336723987,1.8057,1052.7,1052.2,4.00959]
[1610336724788,13.85977027,1054.7,1052.2,4.00959]
[1610336724988,6.4232,1055.0,1052.2,4.00959]
[1610336724989,2.017,1052.7,1052.2,4.00959]
[1610336725387,2.017,1052.7,1052.6,4.00959]
[1610336725986,53.4509,1055.5,1052.6,4.00959]
[1610336726886,1.45584799,1055.4,1052.6,4.00959]
[1610336727290,3.78664799,1055.4,1052.6,4.00959]
[1610336727488,3.78664799,1055.4,1054.3,4.00959]
[1610336728288,2.3308,1055.4,1054.3,4.00959]
[1610336728889,1.8906,1055.4,1054.3,4.00959]
[1610336729089,1.872,1056.5,1054.3,4.00959]
[1610336729390,1.872,1056.5,1056.4,4.00959]
[1610336729791,1.872,1056.5,1054.6,1.8093]
[1610336729792,1.872,1056.5,1055.3,1.6017]
[1610336729991,2.4334,1056.5,1055.3,1.6017]